bitfinex/quotes_SOLUSD_20250714
["timestamp","ask_amount","ask_price","bid_price","bid_amount"]
[1752509211530,65.07812915,163.45,163.39,0.67]
[1752509213111,32.11812915,163.45,163.39,0.67]
[1752509213422,32.11812915,163.45,163.38,0.67]
[1752509214224,32.11812915,163.45,163.38,12.17439543]
[1752509214528,32.11812915,163.45,163.38,0.67]
[1752509214851,0.28,163.44,163.37,1e-08]
[1752509216716,47.41332645,163.45,163.37,1e-08]
[1752509216717,6.11882763,163.43,163.38,0.67]
[1752509217745,58.94,163.45,163.39,0.67]
[1752509217923,26.0,163.45,163.4,11.50439543]
[1752509218115,32.94,163.48,163.41,12.17439543]
[1752509218310,32.94,163.48,163.42,0.7]
[1752509218727,6.11583389,163.51,163.45,11.50439543]
[1752509218929,0.06,163.52,163.48,11.50439543]
[1752509219152,0.06,163.52,163.49,0.7]
[1752509219439,6.1754817,163.52,163.47,12.20439543]
[1752509219651,6.1754817,163.52,163.48,0.7]
[1752509219847,6.1754817,163.52,163.46,0.61177046]
[1752509220023,6.4554817,163.52,163.45,0.7]
[1752509220221,6.4554817,163.52,163.45,12.20439543]
[1752509220414,6.1754817,163.52,163.46,0.7]
[1752509220945,26.0,163.49,163.43,0.7]
[1752509221114,26.28,163.49,163.43,0.7]
[1752509221317,26.0,163.47,163.41,129.35955312]
[1752509221533,26.0,163.47,163.41,39.75955312]
[1752509221932,32.92,163.51,163.45,11.50439543]
[1752509222135,32.92,163.51,163.46,0.7]
[1752509222522,26.0,163.5,163.47,0.7]
[1752509222718,0.06,163.52,163.48,0.7]
[1752509222936,0.06,163.52,163.48,11.50439543]
[1752509223134,0.06,163.52,163.49,0.7]
[1752509223439,0.06,163.52,163.5,0.7]
[1752509223629,0.06,163.52,163.5,12.20439543]
[1752509223827,0.06,163.52,163.51,0.7]
[1752509224016,0.06,163.52,163.48,0.7]
[1752509224443,0.06,163.52,163.47,11.50439543]
[1752509224826,0.06,163.52,163.48,0.7]
[1752509225327,0.06,163.52,163.45,32.92]
[1752509225328,0.06,163.52,163.45,0.7]
[1752509225533,26.0,163.5,163.45,0.7]
[1752509225731,26.0,163.5,163.44,6.402]
[1752509225950,26.0,163.5,163.45,0.7]
[1752509226546,26.0,163.5,163.46,0.7]
[1752509226849,0.06,163.52,163.48,6.1169562]
[1752509227053,0.06,163.52,163.5,11.50439543]
[1752509227342,0.06,163.52,163.51,11.50439543]
[1752509227550,0.06,163.57,163.51,12.20439543]
[1752509227726,0.06,163.57,163.54,11.50439543]
[1752509227928,0.06,163.57,163.53,11.50439543]
[1752509228129,0.06,163.57,163.54,0.7]
[1752509228548,6.17368024,163.57,163.52,12.20439543]
[1752509228746,6.17368024,163.57,163.53,0.7]
[1752509229048,6.17368024,163.57,163.5,6.11607388]
[1752509229049,0.06,163.57,163.5,6.11607388]
[1752509229248,0.06,163.57,163.52,11.50439543]
[1752509229757,0.06,163.57,163.53,12.20439543]
[1752509229920,0.06,163.57,163.54,12.20439543]
[1752509230120,0.06,163.57,163.55,0.7]
[1752509230324,0.06,163.57,163.55,12.20439543]
[1752509230539,0.06,163.57,163.55,0.7]
[1752509230741,0.06,163.57,163.54,11.50439543]
[1752509230742,0.06,163.57,163.52,0.7]
[1752509230924,0.06,163.57,163.52,12.20439543]
[1752509231128,0.06,163.57,163.54,11.50439543]
[1752509231635,0.06,163.57,163.55,0.7]
[1752509233134,0.06,163.57,163.56,12.20439543]
[1752509233526,0.06,163.57,163.56,12.81579185]
[1752509233929,0.06,163.57,163.56,0.7]
[1752509235247,0.06,163.57,163.56,12.20439543]
[1752509236356,0.06,163.57,163.56,0.7]
[1752509236565,0.06,163.57,163.54,32.88]
[1752509236854,0.06,163.57,163.56,12.20439543]
[1752509238661,0.06,163.57,163.56,18.31835972]
[1752509239157,0.06,163.57,163.56,35.10304369]
[1752509239730,0.06,163.57,163.56,150.70304369]
[1752509239953,0.06,163.57,163.56,157.09544369]
[1752509241047,0.06,163.57,163.56,114.31075972]
[1752509241269,0.06,163.57,163.56,123.14]
[1752509241450,0.06,163.57,163.56,140.75835972]
[1752509242459,0.06,163.59,163.57,16.78468397]
[1752509242758,0.06,163.59,163.58,12.1157171]
[1752509242963,0.06,163.59,163.58,18.92893387]
[1752509243285,0.06,163.59,163.58,35.71361784]
[1752509243581,0.06,163.6,163.58,125.31361784]
[1752509243800,0.06,163.6,163.59,56.54879086]
[1752509244075,0.06,163.64,163.63,42.78468397]
[1752509244379,0.06,163.66,163.64,18.38768397]
[1752509244554,0.06,163.66,163.65,28.90013958]
[1752509244762,0.06,163.66,163.65,29.60013958]
[1752509245072,0.06,163.66,163.65,35.71074147]
[1752509245670,0.2,163.69,163.68,32.4687]
[1752509245874,0.2,163.69,163.68,77.40404362]
[1752509246065,0.2,163.69,163.68,78.10404362]
[1752509247374,1e-08,163.69,163.68,100.9982095]
[1752509247675,0.2,163.7,163.68,100.9982095]
[1752509247875,0.2,163.7,163.69,12.20439543]
[1752509248271,1e-08,163.7,163.69,40.49347483]
[1752509249058,1e-08,163.7,163.69,130.09347483]
[1752509249460,1e-08,163.7,163.69,136.20258351]
[1752509249788,1e-08,163.7,163.69,35.09818808]
[1752509249977,1e-08,163.7,163.69,46.60258351]
[1752509250178,1e-08,163.7,163.69,47.21349437]
[1752509250373,1e-08,163.7,163.69,35.70909894]
[1752509250568,1e-08,163.7,163.69,0.61091086]
[1752509250770,1e-08,163.7,163.68,32.82]
[1752509250965,1e-08,163.7,163.68,45.01439543]
[1752509251363,1e-08,163.7,163.64,0.61109753]
[1752509251686,0.52000001,163.7,163.65,32.8]
[1752509252061,0.52,163.69,163.65,32.8]
[1752509252780,0.52,163.68,163.63,32.78]
[1752509253204,0.52,163.67,163.63,32.78]
[1752509253406,6.63017924,163.67,163.63,32.78]
[1752509253711,6.63017924,163.67,163.61,50.39645017]
[1752509253911,6.63017924,163.67,163.61,38.89205474]
[1752509254885,6.63017924,163.67,163.61,32.78]
[1752509255882,6.11017924,163.67,163.6,32.78]
[1752509256084,0.52,163.66,163.6,32.78]
[1752509256486,0.52,163.66,163.55,18.30845215]
[1752509256670,0.52,163.66,163.57,32.78]
[1752509256872,0.52,163.66,163.57,44.28439543]
[1752509257202,6.11060189,163.65,163.57,32.78]
[1752509257374,6.11060189,163.65,163.57,51.08790174]
[1752509257687,0.52,163.66,163.57,51.08790174]
[1752509257688,6.63034857,163.66,163.59,11.50439543]
[1752509257865,6.10982201,163.68,163.6,12.19439543]
[1752509258290,6.10982201,163.68,163.6,44.97439543]
[1752509258492,0.52,163.67,163.6,33.47]
[1752509258788,0.52,163.67,163.6,44.97439543]
[1752509258995,6.10982201,163.68,163.61,12.19439543]
[1752509259199,6.10982201,163.68,163.61,18.30632861]
[1752509259601,1e-08,163.7,163.64,11.50439543]
[1752509259904,6.6288243,163.7,163.62,0.69]
[1752509260300,6.6288243,163.7,163.62,12.19439543]
[1752509260600,6.6288243,163.7,163.63,12.19439543]
[1752509260799,1e-08,163.7,163.66,11.50439543]
[1752509261006,1e-08,163.7,163.67,12.19439543]
[1752509261193,1e-08,163.7,163.67,18.3040463]
[1752509261392,1e-08,163.7,163.68,0.69]
[1752509261904,1e-08,163.7,163.69,0.69]
[1752509262100,1e-08,163.7,163.68,0.69]
[1752509262288,1e-08,163.7,163.67,12.11538094]
[1752509262491,1e-08,163.7,163.67,0.69]
[1752509263009,1e-08,163.7,163.67,6.79972082]
[1752509263211,1e-08,163.7,163.66,32.76]
[1752509263388,1e-08,163.7,163.66,33.45]
[1752509264196,0.52000001,163.7,163.66,32.76]
[1752509264405,0.52000001,163.7,163.63,33.45]
[1752509264406,1e-08,163.7,163.63,33.45]
[1752509264714,1e-08,163.7,163.63,39.56117959]
[1752509264715,0.52,163.69,163.63,39.56117959]
[1752509265003,1e-08,163.7,163.64,12.19439543]
[1752509265212,6.1087355,163.7,163.64,0.69]
[1752509266822,6.1087355,163.7,163.64,12.19439543]
[1752509267125,6.1087355,163.7,163.63,44.26439543]
[1752509267607,6.1087355,163.7,163.63,32.76]
[1752509267924,6.1087355,163.7,163.63,38.8713001]
[1752509268320,6.1087355,163.7,163.63,51.06569553]
[1752509268999,6.1087355,163.7,163.65,6.11060189]
[1752509269199,6.1087355,163.7,163.66,0.69]
[1752509270496,1e-08,163.7,163.66,0.69]
[1752509270828,1e-08,163.7,163.67,0.69]
[1752509271015,1e-08,163.7,163.67,18.30389476]
[1752509271399,1e-08,163.7,163.68,0.69]
[1752509272127,1e-08,163.7,163.69,0.69]
[1752509273129,1e-08,163.7,163.67,0.69]
[1752509273606,1e-08,163.7,163.68,0.69]
[1752509273816,1e-08,163.7,163.65,17.61491914]
[1752509274118,1e-08,163.7,163.66,0.69]
[1752509275098,1e-08,163.7,163.67,0.69]
[1752509275306,1e-08,163.7,163.66,0.69]
[1752509275519,0.52000001,163.7,163.64,33.41]
[1752509275718,26.52000001,163.7,163.62,0.69]
[1752509275915,0.52,163.69,163.62,0.69]
[1752509276524,0.52,163.69,163.61,0.03]
[1752509276821,21.38841358,163.64,163.61,0.03]
[1752509277026,0.52,163.63,163.61,0.03]
[1752509277241,26.0,163.61,163.54,0.72]
[1752509277406,26.0,163.61,163.54,0.03]
[1752509277606,0.52,163.6,163.54,0.03]
[1752509278028,26.0,163.61,163.54,0.72]
[1752509278833,6.11246943,163.6,163.54,0.72]
[1752509279122,6.11246943,163.6,163.54,6.83453042]
[1752509279310,32.11219821,163.61,163.54,6.83453042]
[1752509279723,32.11219821,163.61,163.55,0.67]
[1752509280221,0.52,163.65,163.56,11.50439543]
[1752509280424,6.11097531,163.64,163.57,0.67]
[1752509280736,0.52,163.63,163.55,0.67]
[1752509281739,6.11172228,163.62,163.55,6.78429755]
[1752509282637,6.63060189,163.65,163.57,11.50439543]
[1752509282806,6.63060189,163.65,163.58,0.67]
[1752509283010,21.90710662,163.65,163.58,0.67]
[1752509283318,0.52,163.64,163.56,0.67]
[1752509283512,0.52,163.64,163.56,12.17439543]
[1752509283728,7.6944,163.68,163.61,11.50439543]
[1752509283936,0.52,163.69,163.63,11.50439543]
[1752509284230,26.52,163.69,163.63,11.50439543]
[1752509284437,0.52,163.69,163.63,11.50439543]
[1752509284917,6.62923405,163.69,163.63,11.50439543]
[1752509285114,26.0,163.68,163.62,0.67]
[1752509285322,26.0,163.68,163.62,12.17439543]
[1752509285522,26.0,163.68,163.64,11.50439543]
[1752509285721,6.10923405,163.69,163.64,0.67]
[1752509285722,32.10923405,163.69,163.64,0.67]
[1752509286740,0.52,163.68,163.61,0.67]
[1752509287515,0.52,163.68,163.61,12.17439543]
[1752509287716,6.10985519,163.67,163.61,0.67]
[1752509287923,6.62985519,163.67,163.59,18.28715898]
[1752509288333,6.62985519,163.67,163.6,12.17439543]
[1752509288529,6.62985519,163.67,163.59,6.11276355]
[1752509288530,6.10985519,163.67,163.62,11.50439543]
[1752509288714,6.10985519,163.67,163.63,0.67]
[1752509289524,6.10985519,163.67,163.63,12.17439543]
[1752509289726,6.10948191,163.68,163.63,0.67]
[1752509290248,6.10948191,163.68,163.62,17.61596411]
[1752509290446,32.10922745,163.69,163.64,12.17439543]
[1752509290652,6.10922745,163.69,163.65,0.67]
[1752509290951,6.10922745,163.69,163.66,0.67]
[1752509291149,38.80883116,163.7,163.66,0.67]
[1752509291547,38.80883116,163.7,163.64,12.17439543]
[1752509291846,38.80883116,163.7,163.62,12.17439543]
[1752509291847,39.32883116,163.7,163.62,12.17439543]
[1752509292029,39.32883116,163.7,163.62,0.67]
[1752509292843,0.52,163.69,163.62,0.67]
[1752509293230,26.0,163.67,163.6,0.67]
[1752509293428,26.52,163.67,163.6,0.67]
[1752509293739,26.52,163.67,163.6,6.78245167]
[1752509293945,6.11022852,163.66,163.6,6.78245167]
[1752509294254,6.11022852,163.66,163.6,0.67]
[1752509295058,6.63022852,163.66,163.59,32.68]
[1752509295359,0.52,163.65,163.58,0.67]
[1752509295665,0.52,163.65,163.58,6.78311395]
[1752509296026,6.11097531,163.64,163.58,6.78311395]
[1752509297374,6.11097531,163.64,163.58,0.67]
[1752509297579,6.63097531,163.64,163.58,0.67]
[1752509297986,0.52,163.63,163.55,33.38]
[1752509299281,6.11209583,163.61,163.55,6.14432147]
[1752509299565,6.11209583,163.61,163.55,0.7]
[1752509299980,21.91233542,163.61,163.55,0.7]
[1752509300204,0.52,163.6,163.55,0.03]
[1752509300612,33.18,163.6,163.55,0.03]
[1752509300899,0.52,163.59,163.55,0.03]
[1752509301072,0.52,163.58,163.55,0.03]
[1752509301269,6.11359051,163.57,163.55,0.03]
[1752509301508,6.11284308,163.59,163.55,0.03]
[1752509301706,6.11232154,163.61,163.56,0.67]
[1752509302676,0.7,163.6,163.54,11.01380384]
[1752509302900,6.8125124,163.6,163.53,17.61933798]
[1752509303305,6.8125124,163.6,163.54,11.50439543]
[1752509303520,58.66,163.62,163.56,11.50439543]
[1752509303699,32.66,163.62,163.57,11.50439543]
[1752509304036,0.7,163.61,163.53,43.61933798]
[1752509304188,0.7,163.61,163.53,17.61933798]
[1752509304816,0.7,163.61,163.53,18.28933798]
[1752509304983,6.11246943,163.6,163.54,11.50439543]
[1752509305306,33.36,163.63,163.55,12.17439543]
[1752509305505,33.36,163.63,163.56,0.67]
[1752509306910,39.47134877,163.63,163.56,12.17439543]
[1752509307104,39.47134877,163.63,163.56,0.67]
[1752509307280,0.7,163.62,163.54,38.17439543]
[1752509307794,0.06,163.64,163.59,11.50439543]
[1752509307992,0.06,163.64,163.6,12.17439543]
[1752509308216,0.06,163.64,163.61,0.67]
[1752509308393,6.17103304,163.64,163.61,0.67]
[1752509309188,6.85103304,163.64,163.58,18.88884541]
[1752509309391,6.85103304,163.64,163.58,12.16439543]
[1752509309589,6.85103304,163.64,163.58,18.27745928]
[1752509310097,6.85103304,163.64,163.58,12.16439543]
[1752509310909,0.06,163.64,163.6,11.50439543]
[1752509311110,6.17100271,163.64,163.61,0.66]
[1752509311589,6.17100271,163.64,163.6,11.50439543]
[1752509311998,6.17100271,163.64,163.6,0.66]
[1752509312426,0.68,163.63,163.57,33.3]
[1752509312791,0.68,163.63,163.57,32.64]
[1752509314014,8.1041,163.61,163.53,0.03]
[1752509314191,6.11284308,163.59,163.53,0.03]
[1752509314792,6.79284308,163.59,163.53,0.03]
[1752509315194,0.68,163.58,163.53,0.03]
[1752509315408,16.78468397,163.57,163.53,0.03]
[1752509315614,21.39495078,163.59,163.47,0.03]
[1752509315615,16.78468397,163.53,163.47,0.03]
[1752509315915,42.78468397,163.51,163.47,0.03]
[1752509316301,6.79620795,163.5,163.47,0.03]
[1752509316838,6.79620795,163.5,163.41,6.14945779]
[1752509316839,26.0,163.46,163.41,0.03]
[1752509317213,0.68,163.45,163.41,0.03]
[1752509317630,0.68,163.44,163.41,0.03]
[1752509318633,0.68,163.43,163.41,0.03]
[1752509319012,0.68,163.42,163.41,0.03]
[1752509320215,6.79920205,163.42,163.41,0.03]
[1752509322112,32.64,163.44,163.41,0.03]
[1752509322311,32.64,163.44,163.41,0.69]
[1752509322513,6.11703786,163.48,163.43,11.50439543]
[1752509322716,38.73666126,163.49,163.44,0.66]
[1752509322934,39.41666126,163.49,163.44,0.66]
[1752509323126,39.41666126,163.49,163.42,12.16439543]
[1752509323640,0.68,163.48,163.42,11.50439543]
[1752509323826,17.46468397,163.48,163.41,0.69]
[1752509324140,0.68,163.47,163.41,0.69]
[1752509324332,6.11770463,163.46,163.41,0.03]
[1752509324519,0.68,163.45,163.41,0.03]
[1752509324930,0.68,163.44,163.41,0.03]
[1752509326340,16.78468397,163.48,163.41,0.03]
[1752509326341,6.79726996,163.48,163.42,0.66]
[1752509327117,6.79726996,163.48,163.42,12.16439543]
[1752509327316,64.73659541,163.49,163.43,12.16439543]
[1752509327535,6.11628364,163.5,163.44,12.16439543]
[1752509327739,6.69628364,163.5,163.42,17.62352699]
[1752509328543,6.69628364,163.5,163.43,11.50439543]
[1752509328837,6.69628364,163.5,163.44,11.50439543]
[1752509329046,6.69628364,163.5,163.43,12.16439543]
[1752509329426,17.36468397,163.49,163.41,8.37438134]
[1752509329825,17.36468397,163.49,163.42,11.50439543]
[1752509330233,17.36468397,163.49,163.41,19.87877677]
[1752509330740,6.6969562,163.48,163.41,0.69]
[1752509331119,39.3169562,163.48,163.41,0.69]
[1752509331520,39.3169562,163.48,163.42,11.50439543]
[1752509331740,39.3169562,163.48,163.42,12.16439543]
[1752509331942,38.7369562,163.48,163.42,12.16439543]
[1752509332449,32.62,163.48,163.43,12.16439543]
[1752509332653,6.11549919,163.52,163.46,11.50439543]
[1752509332941,6.11549919,163.52,163.44,7.39029857]
[1752509332942,6.11477112,163.54,163.48,11.50439543]
[1752509333152,6.11477112,163.54,163.47,12.16439543]
[1752509333330,0.68,163.53,163.45,1.5586]
[1752509333528,0.68,163.53,163.45,13.06299543]
[1752509334457,21.40410958,163.52,163.45,1.5586]
[1752509334656,0.68,163.51,163.44,0.66]
[1752509335464,33.28,163.51,163.43,32.62]
[1752509335622,17.46468397,163.5,163.43,32.62]
[1752509335958,17.46468397,163.5,163.42,0.66]
[1752509335959,0.68,163.49,163.42,0.66]
[1752509336540,6.1169562,163.48,163.42,0.66]
[1752509337922,6.79668405,163.49,163.42,18.28353782]
[1752509338127,6.79668405,163.49,163.43,0.66]
[1752509339349,6.79668405,163.49,163.41,12.23439543]
[1752509339649,0.71,163.48,163.41,18.35391322]
[1752509340227,6.11668405,163.49,163.42,12.20439543]
[1752509340427,59.31,163.51,163.44,11.50439543]
[1752509340647,0.71,163.5,163.43,0.7]
[1752509341248,6.11658205,163.49,163.43,0.7]
[1752509341583,0.71,163.5,163.44,11.50439543]
[1752509341746,64.71620776,163.51,163.45,0.7]
[1752509341935,65.42620776,163.51,163.45,0.7]
[1752509342959,0.71,163.5,163.42,18.32359748]
[1752509343330,0.71,163.5,163.42,6.81920205]
[1752509343529,17.49468397,163.5,163.42,0.7]
[1752509343736,0.71,163.49,163.41,0.03]
[1752509344856,6.1169562,163.48,163.41,0.03]
[1752509345064,0.71,163.47,163.41,0.03]
[1752509346050,6.8269562,163.48,163.42,0.7]
[1752509346731,6.82620795,163.5,163.44,6.11845325]
[1752509346937,6.82620795,163.5,163.44,6.81845325]
[1752509347138,32.82620795,163.5,163.44,18.32284868]
[1752509347352,32.82620795,163.5,163.44,0.7]
[1752509348538,32.82620795,163.5,163.44,18.32262121]
[1752509348734,32.82620795,163.5,163.44,0.7]
[1752509349358,0.71,163.5,163.44,18.32275946]
[1752509349550,6.11609082,163.51,163.46,11.50439543]
[1752509349744,6.88609082,163.51,163.46,0.7]
[1752509350547,0.06,163.51,163.47,0.7]
[1752509350749,0.06,163.51,163.49,11.50439543]
[1752509350949,0.77,163.51,163.46,0.7]
[1752509351256,0.71,163.5,163.44,90.3]
[1752509351444,0.71,163.5,163.44,101.80439543]
[1752509351640,6.17597824,163.51,163.48,11.50439543]
[1752509351641,0.06,163.51,163.48,11.50439543]
[1752509351840,0.06,163.51,163.49,0.7]
[1752509352058,0.06,163.51,163.47,11.50439543]
[1752509352248,0.06,163.51,163.48,0.7]
[1752509352562,0.06,163.51,163.47,11.50439543]
[1752509352563,0.06,163.51,163.49,12.20439543]
[1752509352759,0.06,163.51,163.49,0.7]
[1752509352969,0.06,163.51,163.47,0.7]
[1752509353151,0.06,163.51,163.45,0.7]
[1752509353355,0.71,163.5,163.45,0.7]
[1752509353748,0.06,163.51,163.46,0.7]
[1752509353955,0.06,163.51,163.47,11.50439543]
[1752509354152,0.06,163.51,163.49,11.50439543]
[1752509354548,0.06,163.51,163.5,12.20439543]
[1752509355255,0.06,163.51,163.5,12.81601622]
[1752509355863,0.06,163.51,163.5,12.20439543]
[1752509357545,0.06,163.51,163.5,18.32060338]
[1752509358074,0.06,163.51,163.5,12.20439543]
[1752509358455,0.06,163.51,163.5,18.32060338]
[1752509359162,0.06,163.51,163.5,0.7]
[1752509359357,0.06,163.51,163.5,12.20439543]
[1752509360066,0.06,163.51,163.49,11.50439543]
[1752509360367,0.06,163.51,163.49,12.20439543]
[1752509360775,0.06,163.51,163.48,50.18124119]
[1752509360969,0.06,163.51,163.48,32.56]
[1752509361168,0.77,163.51,163.48,32.56]
[1752509361762,0.06,163.51,163.48,32.56]
[1752509361956,0.06,163.51,163.49,0.7]
[1752509362476,0.06,163.51,163.49,12.20439543]
[1752509362674,0.06,163.51,163.49,0.7]
[1752509362878,0.06,163.51,163.48,50.18133319]
[1752509363076,0.06,163.51,163.48,50.88133319]
[1752509363291,0.06,163.51,163.48,33.26]
[1752509363477,0.71,163.5,163.46,0.7]
[1752509363654,0.71,163.49,163.45,58.52]
[1752509363855,0.06,163.51,163.46,0.7]
[1752509364093,0.71,163.5,163.45,32.52]
[1752509364356,0.71,163.49,163.45,32.52]
[1752509364584,0.71,163.48,163.43,90.3]
[1752509364761,0.06,163.51,163.42,32.52]
[1752509364762,0.71,163.47,163.42,32.52]
[1752509365074,0.71,163.46,163.41,0.03]
[1752509365457,6.82807892,163.45,163.41,0.03]
[1752509365854,0.71,163.47,163.41,0.73]
[1752509366777,38.63620795,163.5,163.42,11.50439543]
[1752509366977,65.34620795,163.5,163.43,12.20439543]
[1752509367364,65.34620795,163.5,163.43,18.32306855]
[1752509368163,0.71,163.49,163.43,17.62306855]
[1752509368486,0.71,163.49,163.39,104.900814]
[1752509368487,10.581,163.45,163.38,0.03]
[1752509368699,26.0,163.41,163.38,0.03]
[1752509368986,3.3937,163.39,163.34,0.03]
[1752509369282,42.78468397,163.36,163.34,0.03]
[1752509369483,26.61757778,163.35,163.34,0.03]
[1752509369870,26.61757778,163.35,163.34,0.75]
[1752509370070,32.12115074,163.37,163.34,0.75]
[1752509370268,26.0,163.37,163.34,0.75]
[1752509370467,26.61757778,163.37,163.34,0.75]
[1752509370673,26.0,163.37,163.34,0.75]
[1752509370992,1.19757778,163.42,163.35,12.22439543]
[1752509371178,6.73687398,163.42,163.36,12.22439543]
[1752509371659,6.73687398,163.42,163.36,0.72]
[1752509372064,6.73687398,163.42,163.36,12.22439543]
[1752509372280,6.73687398,163.42,163.34,6.15186876]
[1752509372281,7.31687398,163.42,163.34,0.03]
[1752509372477,17.36468397,163.41,163.34,0.03]
[1752509372675,16.78468397,163.39,163.34,0.03]
[1752509372874,16.78468397,163.37,163.34,0.03]
[1752509373068,1.19757778,163.36,163.34,0.03]
[1752509373288,2.75057778,163.36,163.34,0.03]
[1752509373583,6.7018243,163.35,163.34,0.03]
[1752509373776,39.2218243,163.35,163.34,0.03]
[1752509373984,6.7018243,163.35,163.34,0.03]
[1752509374294,38.6418243,163.35,163.34,0.03]
[1752509376391,26.0,163.35,163.34,0.03]
[1752509376573,38.66154501,163.36,163.34,0.03]
[1752509376886,6.73869181,163.37,163.34,0.03]
[1752509377094,39.27869181,163.37,163.34,0.03]
[1752509377468,26.0,163.35,163.34,0.03]
[1752509377889,26.61757778,163.35,163.34,0.03]
[1752509378195,33.31940208,163.35,163.34,0.03]
[1752509378495,50.10408605,163.35,163.34,0.03]
[1752509379286,65.4086468,163.35,163.29,0.03]
[1752509379463,33.12,163.34,163.29,0.03]
[1752509379662,0.58,163.37,163.3,12.22439543]
[1752509379875,33.15757778,163.36,163.31,12.22439543]
[1752509380075,6.73790338,163.39,163.32,12.22439543]
[1752509380279,32.54,163.38,163.32,12.22439543]
[1752509380480,0.61757778,163.37,163.32,12.22439543]
[1752509380677,0.61757778,163.37,163.33,0.72]
[1752509381294,0.61757778,163.37,163.31,12.22439543]
[1752509381503,0.61757778,163.37,163.32,11.50439543]
[1752509381671,6.7390133,163.37,163.33,0.72]
[1752509381867,32.54,163.39,163.35,11.50439543]
[1752509382074,6.11995104,163.4,163.36,12.22439543]
[1752509382398,6.73727249,163.41,163.37,12.22439543]
[1752509382598,6.73648632,163.43,163.39,11.50439543]
[1752509382800,38.65855226,163.44,163.4,0.72]
[1752509383095,32.54,163.44,163.41,0.72]
[1752509383294,32.54,163.47,163.42,12.22439543]
[1752509383594,0.61757778,163.48,163.43,0.72]
[1752509383898,6.73453398,163.48,163.44,0.72]
[1752509384091,6.73453398,163.48,163.42,12.22439543]
[1752509384588,26.0,163.45,163.42,12.22439543]
[1752509384773,26.0,163.45,163.43,0.72]
[1752509385597,6.1169562,163.48,163.44,12.22439543]
[1752509386103,6.1169562,163.48,163.44,0.72]
[1752509386279,0.61757778,163.47,163.42,11.50439543]
[1752509386476,0.61757778,163.47,163.43,0.72]
[1752509386888,0.61757778,163.47,163.4,0.72]
[1752509387072,0.61757778,163.47,163.4,12.22439543]
[1752509387509,0.61757778,163.47,163.4,0.72]
[1752509387678,6.11770463,163.46,163.4,0.72]
[1752509387878,0.61757778,163.45,163.4,0.72]
[1752509388501,0.61757778,163.45,163.41,0.72]
[1752509388711,0.61757778,163.45,163.4,11.50439543]
[1752509388898,0.61757778,163.47,163.43,11.50439543]
[1752509389091,26.0,163.45,163.43,0.72]
[1752509389912,32.11809676,163.45,163.43,0.72]
[1752509390084,0.61757778,163.44,163.4,0.72]
[1752509390691,0.61757778,163.44,163.38,11.50439543]
[1752509390692,1.19757778,163.44,163.36,122.14]
[1752509390907,1.19757778,163.44,163.38,0.72]
[1752509391302,1.19757778,163.44,163.36,33.26]
[1752509391505,0.61757778,163.44,163.38,11.50439543]
[1752509391708,32.11809676,163.45,163.39,12.22439543]
[1752509391918,6.11777341,163.46,163.42,11.50439543]
[1752509392215,26.0,163.44,163.43,0.72]
[1752509392712,6.7338085,163.5,163.43,12.22439543]
[1752509392913,6.11623072,163.5,163.47,11.50439543]
[1752509393211,6.11623072,163.5,163.47,0.72]
[1752509393416,6.11623072,163.5,163.43,1.5898]
[1752509393715,0.06,163.51,163.49,11.50439543]
[1752509393920,0.06,163.51,163.5,18.34060338]
[1752509394119,0.06,163.51,163.5,18.95222417]